Cogmind - Beta 15 @@@ ROGUE MODE // 2025.07.15 @ 18:06:26 Player: Skysub Result: Destroyed by CY-CYS(R) with Subdweller Machine Gun Performance ------------- Evolutions (0) 0 Regions Visited (2) 400 Robots Destroyed (28) 140 Value Destroyed (708) 708 Prototype IDs (0) 0 Alien Tech Used (0) 0 Bonus (0) 0 TOTAL SCORE: 1248 Bonus ------- None Cogmind --------- Core Integrity 0/250 Matter 274/300 Energy 200/200 System Corruption 0% Temperature Cool (0) Movement Rolling (120) Ox1 Location -10/Subcaves Parts ------- > --- POWER (1) -------- Subdweller Power Source > --- PROPULSION (2) --- Subdweller Monowheel > --- UTILITY (2) ------ Improved Heat Sink Large Storage Unit > --- WEAPON (2) ------- Light Assault Rifle > --- INVENTORY (15) --- Subdweller Power Source Small Storage Unit Subdweller Optics Subdweller Optics Subdweller Optics Scrap Shield Small Laser Subdweller Laser Subdweller Beam Cannon Light Assault Rifle Subdweller Machine Gun Dirty Datajack (20) Hammer Peak State ------------ > --- POWER ------------ Subdweller Power Source > --- PROPULSION ------- Subdweller Monowheel > --- UTILITY ---------- Improved Heat Sink Large Storage Unit > --- WEAPON ----------- Subdweller Laser Light Assault Rifle > --- INVENTORY -------- Subdweller Power Source Small Storage Unit Subdweller Optics Subdweller Optics Small Laser Subdweller Laser Light Assault Rifle Light Assault Rifle Light Assault Rifle Subdweller Machine Gun Dirty Datajack Hammer [Rating: 13] Favorites ----------- Power Ion Engine Engine Ion Engine Propulsion Light Treads Treads Light Treads Wheel Wheel Utility Large Storage Unit Device Improved Heat Sink Storage Large Storage Unit Protection Light Armor Plating Weapon Light Assault Rifle Energy Gun Small Laser Ballistic Gun Light Assault Rifle Launcher Grenade Launcher Impact Weapon Hammer Build | -11 -10 -10 ------- Run | Yrd Mat Sub Slots Evolved . | . . . Power . | . . . Propulsion . | . . . Utility . | . . . Weapon . | . . . Parts Attached 24 | 6 7 11 Power 3 | 1 . 2 Engine 3 | 1 . 2 Core . | . . . Reactor . | . . . Propulsion 6 | 2 2 2 Treads 3 | 2 1 . Leg . | . . . Wheel 3 | . 1 2 Hover . | . . . Flight . | . . . Utility 4 | 1 2 1 Device 1 | . . 1 Storage 2 | 1 1 . Processor . | . . . Hackware . | . . . Protection 1 | . 1 . Artifact . | . . . Weapon 11 | 2 3 6 Energy Gun 3 | 1 . 2 Energy Cannon . | . . . Ballistic Gun 6 | 1 1 4 Ballistic Cannon . | . . . Launcher 1 | . 1 . Special Weapon . | . . . Impact Weapon 1 | . 1 . Slashing Weapon . | . . . Piercing Weapon . | . . . Special Melee Weapon . | . . . Unidentified Prototypes . | . . . Parts Lost 14 | . 5 9 Power 2 | . 1 1 Propulsion 5 | . 2 3 Utility 1 | . . 1 Weapon 6 | . 2 4 Highest Loss Streak 3 | . 3 3 To Critical Strikes . | . . . Average Backups 7 | 1 5 10 Power . | . 1 . Propulsion . | . 1 . Utility 1 | . . 2 Weapon 4 | . 2 6 Tool/Special . | . . . Unused Backups 9 | . 1 8 Power 1 | . . 1 Propulsion . | . . . Utility 4 | . . 4 Weapon 3 | . 1 2 Tool/Special 1 | . . 1 Average Slot Usage (%) 88 | . 89 88 Engine 13 | . 14 13 Treads 14 | . 23 5 Wheel 8 | . 1 15 Device 2 | . . 5 Storage 14 | . 14 14 Protection 5 | . 6 4 Energy Gun 5 | . 6 5 Ballistic Gun 18 | . 15 22 Launcher 3 | . 6 . Peak Build Rating 13 | 6 8 13 Average Rating 7 | 4 6 9 On Entrance 4 | . 6 7 Naked Turns . | . . . Heaviest Build 32 | 12 32 31 Greatest Support 40 | 40 40 30 Greatest Overweight (x) 10 | . 3 10 Average Overweight (x) . | . . 1 Largest Inventory Capacity 15 | 8 15 15 Average Capacity 13 | 7 11 15 Most Carried 15 | 3 8 15 Average Carried 7 | 1 5 10 Final Capacity 15 | 8 15 15 Final Carried 14 | 3 8 14 Class Distribution -------------------- 100% | Mutant Dominant Class ---------------- Mutant | -10/Materials Mutant | -10/Subcaves Resources | -11 -10 -10 ----------- Run | Yrd Mat Sub Matter Collected 679 | 263 270 146 Remotely . | . . . Salvage Created 780 | 91 416 273 Parts 53 | 5 32 16 Haulers Intercepted 1 | . 1 . Recyclers Shooed . | . . . Parts Field Recycled . | . . . Retrieved Matter . | . . . Parts Self-Destructed 5 | . . 5 Prevented . | . . . Kills | -11 -10 -10 ------- Run | Yrd Mat Sub Combat Hostiles Destroyed 22 | . 16 6 Guns 13 | . 7 6 AOE 9 | . 9 . Classes Destroyed 8 | 2 5 1 Worker 2 | . 2 . Builder 1 | . 1 . Tunneler 1 | 1 . . Hauler 1 | . 1 . Recycler 1 | 1 . . Swarmer 6 | . 6 . Grunt 10 | . 10 . Subdweller 6 | . . 6 Best Kill Streak 4 | 2 4 2 Combat Bots Only 4 | . 4 2 Max Kills in Single Turn 3 | 1 3 1 Gunslinging . | . . . Exploded 3 | . 3 . Melee . | . . . Uniques/NPCs Destroyed . | . . . Combat | -11 -10 -10 -------- Run | Yrd Mat Sub Hostile Shots Fired 135 | . 81 54 Missed 32 | . 16 16 Hits 103 | . 65 38 Projectile 103 | . 65 38 Critical Strikes 2 | . 1 1 Damage Taken 1577 | . 756 821 Core 251 | . 108 143 Absorbed by Shields . | . . . Core Remaining (%) 100 | 100 . . Volleys Fired 84 | 3 42 39 Largest 2 | 2 2 2 Hottest 80 | 60 60 80 Shots Fired 166 | 6 83 77 Gun 153 | 6 70 77 Cannon . | . . . Launcher 13 | . 13 . Special . | . . . Kinetic 115 | 3 50 62 Thermal 38 | 3 20 15 Explosive 13 | . 13 . Electromagnetic . | . . . Robot Hit Streak 18 | 2 18 13 Robot Miss Streak 4 | 1 4 1 Penetration Max . | . . . Secondary Targets 1 | . . 1 Max Gunslinging Chain 1 | . . 1 Shots Hit Robots 117 | 3 54 60 Core Hits 59 | 3 38 18 Critical Kills . | . . . Critical Parts Destroyed 1 | . 1 . Critical Strikes 1 | . 1 . Destroy 1 | . 1 . Melee Attacks 3 | . 2 1 Impact 3 | . 2 1 Slashing . | . . . Piercing . | . . . Sneak Attacks . | . . . Combat Hostiles . | . . . Follow-up Attacks . | . . . Damage Inflicted 1804 | 35 1135 634 Guns 1087 | 35 418 634 Cannons . | . . . Explosions 716 | . 716 . Melee . | . . . Ramming 1 | . 1 . Kinetic 673 | . 297 376 Thermal 414 | 35 121 258 Explosive 716 | . 716 . Electromagnetic . | . . . Impact . | . . . Slashing . | . . . Piercing . | . . . Highest Corruption . | . . . Average Corruption . | . . . Corruption Purged . | . . . Corruption Blocked . | . . . Overload Shots . | . . . Overflow Damage 9 | . 9 . Projectiles . | . . . Explosions 9 | . 9 . Melee . | . . . Knockbacks . | . . . Impact . | . . . Kinetic . | . . . Secondary . | . . . Self-Inflicted Damage 33 | . 33 . Shots 2 | . 2 . Rammed . | . . . Targets Rammed 1 | . 1 . Kicked . | . . . Crushed 1 | . 1 . Highest Temperature 245 | 20 174 245 Average Temperature 50 | 13 45 137 Received Heat Transfer 722 | . 306 416 Siege Activations . | . . . Martial Activations . | . . . Shielding Activations . | . . . Robots Disrupted . | . . . Combat Hostiles . | . . . Robots Corrupted . | . . . Combat Hostiles . | . . . Parts Fried . | . . . Impact Corruptions . | . . . Robots Melted . | . . . Combat Hostiles . | . . . Parts Melted 2 | . 1 1 Heat Transferred 675 | 75 275 325 Parts Sabotaged . | . . . Parts Stolen . | . . . Parts Stripped . | . . . Power Chain Reactions . | . . . Alert | -11 -10 -10 ------- Run | Yrd Mat Sub Maximum Alert Level 1 | . 1 . Low Security (%) 47 | 100 39 . Level 1 52 | . 60 . Level 2 . | . . . Level 3 . | . . . Level 4 . | . . . Level 5 . | . . . High Security . | . . . Max Security . | . . . Peak Influence 378 | 10 378 . Initial . | . . . Average 168 | . 195 . Influence Increases 649 | 10 639 . Destroy 0b10 Robot/C 320 | . 320 . Destroy 0b10 Robot/NC 30 | 10 20 . Destroy Leader 72 | . 72 . Successful Hack 41 | . 41 . Select Force Hacks 60 | . 60 . Disable Machine 30 | . 30 . Destroy Structure 81 | . 81 . Lose Combat Pursuer 15 | . 15 . Influence Decreases 649 | 10 312 327 Entered New Map 158 | . . 158 Time Decay 431 | 10 262 159 Lost Part 60 | . 50 10 Squads Dispatched 5 | . 5 . Investigation 3 | . 3 . Extermination . | . . . Reinforcement 2 | . 2 . Assault . | . . . Garrison . | . . . Intercept . | . . . Searches Triggered . | . . . Construction Impeded . | . . . Haulers Reinforced . | . . . Active Scanning Responses . | . . . Cargo Convoy Interrupts . | . . . Stealth | -11 -10 -10 --------- Run | Yrd Mat Sub Distress Signals 2 | . 2 . Communications Jammed . | . . . Distress Signals . | . . . Times Spotted 36 | . 28 8 Peak Tracking Total 6 | . 6 2 Tactical Retreats 2 | . 2 . Traps | -11 -10 -10 ------- Run | Yrd Mat Sub Traps Triggered 1 | . 1 . Indirectly . | . . . Trap Hack Attempts . | . . . Triggered . | . . . Disarmed . | . . . Reprogrammed . | . . . Reused . | . . . Traps Extracted . | . . . Installed . | . . . Triggered . | . . . Machines | -11 -10 -10 ---------- Run | Yrd Mat Sub Machines Disabled 2 | . 2 . Max in Single Turn 1 | . 1 . Machines Repaired . | . . . Machines Dismantled . | . . . Machines Sabotaged . | . . . Overloaded Fab Kills . | . . . Hacking | -11 -10 -10 --------- Run | Yrd Mat Sub Machines Accessed 8 | . 8 . Terminals 6 | . 6 . Fabricators . | . . . Repair Stations . | . . . Recycling Units 2 | . 2 . Scanalyzers . | . . . Garrison Access . | . . . Total Hacks 25 | . 25 . Successful 12 | . 12 . Failed 13 | . 13 . Catastrophic 1 | . 1 . Database Lockouts . | . . . Manual 21 | . 21 . Terminals 20 | . 20 . Fabricators . | . . . Repair Stations . | . . . Recycling Units 5 | . 5 . Scanalyzers . | . . . Garrison Access . | . . . Terminal Hacks . | . . . Fabricator Hacks . | . . . Repair Station Hacks . | . . . Recycling Unit Hacks 3 | . 3 . Report Inventory 2 | . 2 . Retrieve Components 1 | . 1 . Scanalyzer . | . . . Garrison Access Hacks . | . . . Unauthorized Hacks 9 | . 9 . Terminals 7 | . 7 . Botnet 2 | . 2 . Skim 5 | . 5 . Fabricators . | . . . Repair Stations . | . . . Recycling Units 2 | . 2 . Tunnel 2 | . 2 . Scanalyzers . | . . . Garrison Access . | . . . Data Cores Recovered . | . . . Used . | . . . Hacking Detections 6 | . 6 . Full Trace Events . | . . . Feedback Events . | . . . Feedback Blocked . | . . . Robot Schematics Acquired . | . . . Robots Built . | . . . Authchips . | . . . Time . | . . . Total Robot Build Rating . | . . . Part Schematics Acquired . | . . . Parts Built . | . . . Authchips . | . . . Time . | . . . Total Part Build Rating . | . . . Parts Repaired . | . . . Time . | . . . Parts Recycled . | . . . Recycled Matter . | . . . Retrieved Matter . | . . . Retrieved Components 2 | . 2 . Parts Scanalyzed . | . . . Part Schematics Acquired . | . . . Parts Damaged . | . . . Bothacking | -11 -10 -10 ------------ Run | Yrd Mat Sub Used RIF Installer . | . . . Robots Hacked . | . . . Non-combat . | . . . Combat . | . . . Robot Hacks Applied . | . . . Relay Couplers Released . | . . . Fabnet Peak Effective % . | . . . Robots Rewired . | . . . Allies Hacked . | . . . Hacks Repelled . | . . . Allies | -11 -10 -10 -------- Run | Yrd Mat Sub Total Allies . | . . . Largest Group . | . . . Highest-Rated Group . | . . . Highest-Rated Ally . | . . . Total Orders . | . . . Ally Attacks . | . . . Total Damage . | . . . Kills . | . . . Allies Corrupted . | . . . Allies Melted . | . . . Intel | -11 -10 -10 ------- Run | Yrd Mat Sub Active Infowar (turns) . | . . . Robot Analysis Total . | . . . Derelict Logs Recovered . | . . . Drone Launches . | . . . Drone Recoveries . | . . . Exploration | -11 -10 -10 ------------- Run | Yrd Mat Sub Turns Passed 1718 | 126 778 814 Spaces Moved 1033 | 70 380 583 Core 12 | 5 . 7 Treads 368 | 65 303 . Legs . | . . . Wheels 653 | . 77 576 Hover . | . . . Flight . | . . . Fastest Speed 50 | 50 110 95 Average Speed 133 | 152 158 114 Slowest Speed 550 | 160 240 550 Overloaded Moves . | . . . Propulsion Burnouts . | . . . Robots Hopped . | . . . Potential Cave-ins . | . . . Cave-ins Triggered . | . . . Exploration Rate (%) 43 | 5 81 45 Regions Visited 2 Branch Regions 1 Pre-discovered Areas 2 | . 2 . Known Exits Taken . | . . . Unknown Exits Taken 2 | 1 1 . Scrap Searched 4 | . . 4 Spaces Dug 2 | . 2 . Terrain Destroyed 80 | . 80 . Melee 2 | . 2 . Projectile . | . . . AOE 78 | . 78 . Terrain Rammed . | . . . Walls Destroyed . | . . . Machines Disabled . | . . . Actions | -11 -10 -10 --------- Run | Yrd Mat Sub Total 1212 | 81 474 657 Wait 35 | . 26 9 Move 1031 | 69 379 583 Hop . | . . . Pick Up 24 | 3 9 12 Fast Attach 11 | 6 4 1 Attach 11 | . 4 7 Detach 1 | . 1 . Swap 10 | . 5 5 Drop 1 | . 1 . Fire 84 | 3 42 39 Melee 3 | . 2 1 Ram . | . . . Kick . | . . . Crush 1 | . 1 . Escape Stasis . | . . . Rewire . | . . . Trap . | . . . Miscellaneous . | . . . Route ------- -11/Scrapyard -10/Materials (discovered 5 exits: [*Mat x2] / [*Min x2] / [*Sub]) -10/Subcaves (discovered 2 exits: [*Mat] / [*Scr]) History --------- Turn | Location | Event 30 | -11/Scrapyard | Discovered new exit (range 15) 127 | -11/Scrapyard | Entered Materials 307 | -10/Materials | Build established: Mutant 392 | -10/Materials | Discovered new exit (range 9) 534 | -10/Materials | Discovered new exit (range 13) 577 | -10/Materials | Discovered new exit (range 11) 717 | -10/Materials | Lost 3 parts (1n2w) 805 | -10/Materials | Discovered new exit (range 6) 827 | -10/Materials | Derelicts attacked the area 891 | -10/Materials | Discovered new exit (range 11) 905 | -10/Materials | Entered Subcaves 906 | -10/Subcaves | Approached by a straggling Scientist 1186 | -10/Subcaves | Core integrity fell below 50% 1355 | -10/Subcaves | Discovered new exit (range 15) 1438 | -10/Subcaves | Lost 3 parts (1p2n) 1567 | -10/Subcaves | Shifting Twisted Machinery released Battle Cannon 1589 | -10/Subcaves | Scientist uncovered a shortcut to Scraptown 1714 | -10/Subcaves | Core integrity fell below 20% 1719 | -10/Subcaves | Destroyed by CY-CYS(R) with Subdweller Machine Gun Last Messages --------------- 01460_ Acquired 10 matter. I1-3AW(c): "I think it's somewhere southeast of here" 01471_ Acquired Dirty Datajack. 01473_ Acquired Scrap Shield. 01476_ K0-UUR(R): "SUBMAD!" 01476_ Acquired Sub. Beam Cannon. 01478_ Lgt. Assault Rifle destroyed. 01483_ Acquired 10 matter. 01484_ Acquired 1 matter. 01489_ K0-UUR(R) destroyed. 01490_ Acquired 1 matter. 01499_ Acquired Sub. Optics. I1-3AW(c): "I think it's somewhere south of here" Battle Cannon falls loose from the Twisted Machinery. I1-3AW(c): "We're getting close, I can feel it." 01589_ I1-3AW(c): "Hah, right again, there it is!" 01598_ I1-3AW(c) exits level. 01683_ Sub. Laser shoots sparks and powers down. 01715_ Lgt. Assault Rifle destroyed. 01719_ Sub. Laser destroyed. Map ----- +----------------------------------------------------+ | ?????????##?????##### #?????????## #???? | | ??????##?????###### ##???#####?## #??? | | ??????#"#???## # #### ##############??? | | ?????##""##?# #????????????? | | ?????# ""### ## #?????????????? | | ?????# ""## # # ### ##???????????????????? | | ??????# " ### ### #????????????????????? | | ??????#"" # # #???####?????????????? | | ??????#" ## #??## ##????????????? | | ??????### ### # ### #??# ##???????????? | | ????????# ### ## # ## ##?# ##??????##??? | | ????????###?## ### ### #?????# #??? | | ????????????# # ## # # ## #???## #??? | | ????????????# ######## #???## #??? | | ????????????## #???## ###### #???? | | ??????????#### ##?## # > ##???? | | ?????????## ### #????? | | ?????????# ## #### ##????? | | ?????????# ## ####### #### # #?????? | | ?????????####### ####?????#"" #" #####?????? | | ???????????????####????????##" ## #????????? | | ???????????????????????????##"" # #????????? | | ??????????????????????????## " ""] ##????????? | | ?????????????????????????## " " #?????????? | | ????????????????????????## ""# # ###?????????? | | ???????????????????????##@ " "#####???????????? | | ???????????????????????# " ""#???????????????? | | ?????????????????????# ###" #??????????????? | | ????????????????????# R #?##""#??????????????? | | ?????????????????? R #??# " "?????????????? | | ???????????????? #??# " ????????????? | | ?????????????? ## ##?????? ?????????????? | | ????????????? ??## #?????????????????????? | | ???????????????????## #?????????????????????? | | ????????????????????#### ?????????????????????? | | ???????????????????????# ?????????????????????? | | ??????????????????????? ?????????????????????? | | ??????????????????????? ?????????????????????? | | ???????????????????????### ?????????????????????? | | ??????????????????????????##?????????????????????? | | ?????????????????????????????????????????????????? | | ?????????????????????????????????????????????????? | | ?????????????????????????????????????????????????? | | ?????????????????????????????????????????????????? | | ?????????????????????????????????????????????????? | | ?????????????????????????????????????????????????? | | ?????????????????????????????????????????????????? | | ?????????????????????????????????????????????????? | | ?????????????????????????????????????????????????? | | ?????????????????????????????????????????????????? | +----------------------------------------------------+ Best States ------------- Heat Dissipation 39 Energy Generation 15 Energy Capacity 250 Matter Stores 300 Matter Capacity 300 Sight Range 16 Terrain Scan Density 10 Armor Coverage 150 Evasion (%) 41 Recoil Reduction 2 Item Schematics ----------------- None Robot Schematics ------------------ None Fabricated ------------ Nothing Repaired ---------- Nothing Alien Tech Used ----------------- None Achievements -------------- None Challenges ------------ None Game ------ Seed TrapBraceDrive Manual? 0 Play Time 00:13:26 Cumulative 152.1 hours Start 2025.07.15 @ 17:54:22 End 2025.07.15 @ 18:06:26 Sessions 1 Manual Loads 0 Difficulty Rogue Special Mode None Game No. 176 Rogue 176 Adventurer 0 Explorer 0 Win Type - Total 3 Types 1/0/0/1/0/0/0/0/0/1 Lore% 65 Gallery% 61 Achievement% 53 Wizard Run 0 Options --------- Layout 1 ASCII 0 Keyboard 1 Movement Numpad Keybinds 0 Fullscreen 1 Font 32/SmallcapsGlow Map View 77x35 Zoom Use 0% Tactical HUD 1 Map Filters NONE Filters NONE Steam 1 RUN: 3e38e97a-e539-432c-b4c0-e891906aca82